bitfinex-derivatives/quotes_SOLF0:USTF0_20240820
["timestamp","ask_amount","ask_price","bid_price","bid_amount"]
[1724112966564,8.56,143.47,143.38,6.22241563]
[1724112966769,2.69582527,143.51,143.38,6.22241563]
[1724112966770,8.56,143.45,143.39,1.28009122]
[1724112967073,8.56,143.45,143.4,8.56]
[1724112967268,8.56,143.44,143.38,6.22241563]
[1724112967769,8.56,143.44,143.38,14.78241563]
[1724112968762,0.0479425,143.42,143.38,14.78241563]
[1724112969168,0.0479425,143.42,143.4,0.02257228]
[1724112970073,0.0479425,143.42,143.41,8.56]
[1724112970777,2.6499,143.51,143.41,8.56]
[1724112970968,7.2754768,143.74,143.45,8.56]
[1724112970969,10.998,143.52,143.45,8.56]
[1724112971277,1.3139,143.56,143.48,8.56]
[1724112971465,1.2887,143.6,143.51,8.56]
[1724112971665,8.56,143.58,143.51,8.56]
[1724112971976,8.56,143.58,143.54,0.05166206]
[1724112972275,0.04846613,143.57,143.54,0.05166206]
[1724112972775,2.4372,143.56,143.54,0.05166206]
[1724112973474,2.4373,143.55,143.54,0.05166206]
[1724112973783,0.04846613,143.57,143.54,0.05166206]
[1724112973964,2.4373,143.55,143.54,0.05166206]
[1724112975770,2.4379,143.52,143.46,26.21759181]
[1724112975972,21.4,143.54,143.46,4.81759181]
[1724112976186,21.4,143.47,143.42,1.2692]
[1724112976365,21.4,143.47,143.4,48.60956236]
[1724112976366,21.4,143.45,143.38,3.55621563]
[1724112976571,1.267,143.52,143.34,2.711]
[1724112976771,1.267,143.52,143.38,2.44]
[1724112976772,4.80024831,143.52,143.38,2.44]
[1724112977075,2.439,143.45,143.37,21.4]
[1724112977267,1.267,143.52,143.41,21.4]
[1724112977467,2.4383,143.5,143.42,1.3595]
[1724112977669,0.0483237,143.46,143.43,21.4]
[1724112978078,22.6532,143.53,143.45,21.4]
[1724112978380,21.4,143.55,143.45,21.4]
[1724112978867,21.4,143.57,143.47,21.4]
[1724112979378,2.4376,143.54,143.47,23.8386]
[1724112979771,21.4,143.55,143.45,21.4]
[1724112979972,21.4,143.53,143.45,21.4]
[1724112980174,2.4383,143.5,143.43,22.7515]
[1724112980583,21.4,143.51,143.43,22.7515]
[1724112980767,2.4378,143.52,143.45,21.4]
[1724112980973,21.45142377,143.53,143.45,21.4]
[1724112981168,21.4,143.53,143.45,21.4]
[1724112981372,2.438,143.51,143.45,23.839]
[1724112981875,2.4383,143.5,143.45,21.4]
[1724112982070,2.48718336,143.5,143.48,0.02118301]
[1724112982679,0.04888336,143.5,143.48,0.02118301]
[1724112985582,2.48698336,143.5,143.48,0.02118301]
[1724112986180,2.4383,143.49,143.48,0.02118301]
[1724112986682,0.04888336,143.5,143.48,0.02118301]
[1724112987885,2.48708336,143.5,143.48,0.02118301]
[1724112988592,0.04888336,143.5,143.48,0.02118301]
[1724112991388,1.267,143.59,143.49,21.4]
[1724112991586,6.18458104,143.58,143.49,21.4]
[1724112992089,1.267,143.59,143.49,21.4]
[1724112992279,2.4375,143.55,143.51,21.4]
[1724112992583,1.267,143.59,143.51,21.4]
[1724112992786,0.05012457,143.55,143.53,0.04402873]
[1724112993377,2.48752457,143.55,143.53,0.04402873]
[1724112995387,0.05012457,143.55,143.53,0.04402873]
[1724112995886,2.48752457,143.55,143.53,0.04402873]
[1724112996276,0.05012457,143.55,143.53,0.04402873]
[1724112996693,0.05012457,143.55,143.54,23.8375]
[1724112997692,0.05012457,143.55,143.53,2.48162873]
[1724112997888,0.05012457,143.55,143.53,0.04402873]
[1724112999280,2.48742457,143.55,143.53,0.04402873]
[1724113001385,0.05012457,143.55,143.53,2.48162873]
[1724113001879,21.4,143.63,143.54,21.4]
[1724113002086,6.18170352,143.62,143.55,21.4]
[1724113002285,24.0534,143.65,143.55,21.4]
[1724113002495,2.4366,143.6,143.57,8.55]
[1724113002991,0.05239113,143.6,143.57,8.59658921]
[1724113003188,0.05239113,143.6,143.59,8.55]
[1724113004593,2.4366,143.59,143.57,0.04658921]
[1724113006700,2.48899113,143.6,143.57,0.04658921]
[1724113007196,0.05239113,143.6,143.57,0.04658921]
[1724113008897,2.4366,143.59,143.57,0.04658921]
[1724113009198,0.05239113,143.6,143.57,0.04658921]
[1724113009383,2.4368,143.58,143.57,0.04658921]
[1724113020401,2.4376,143.53,143.52,1.3187]
[1724113029210,0.04908699,143.54,143.52,1.3187]
[1724113029516,0.04908699,143.54,143.53,8.56]
[1724113029714,9.8207,143.64,143.53,8.56]
[1724113030027,1.3351,143.67,143.6,8.56]
[1724113030313,1.2607,143.69,143.63,8.56]
[1724113030513,1.2607,143.69,143.64,8.56]
[1724113031211,0.04731203,143.68,143.65,0.05242956]
[1724113032508,2.4354,143.66,143.65,0.05242956]
[1724113036210,0.04731203,143.68,143.65,0.05242956]
[1724113037920,2.4354,143.66,143.65,0.05242956]
[1724113041524,2.4353,143.67,143.65,0.05242956]
[1724113041825,0.04731203,143.68,143.65,0.05242956]
[1724113042918,2.4354,143.66,143.65,0.05242956]
[1724113044618,2.4354,143.67,143.65,0.05242956]
[1724113045021,0.04731203,143.68,143.66,21.36]
[1724113045225,4.8679,143.75,143.66,23.7954]
[1724113045226,3.54490961,143.75,143.66,23.7954]
[1724113045426,3.54490961,143.75,143.67,1.2848]
[1724113046331,0.05172653,143.72,143.7,0.0465247]
[1724113047132,2.4346,143.71,143.7,0.0465247]
[1724113052635,2.4346,143.71,143.7,8.5965247]
[1724113053132,2.48622653,143.72,143.7,8.5965247]
[1724113053725,2.4346,143.71,143.7,8.5965247]
[1724113056639,2.4346,143.71,143.7,0.0465247]
[1724113060940,0.05172653,143.72,143.7,0.0465247]
[1724113061147,2.48612653,143.72,143.71,8.55]
[1724113062850,8.55,143.81,143.71,8.55]
[1724113063049,8.55,143.81,143.74,8.55]
[1724113063244,1.3685,143.82,143.74,8.55]
[1724113063548,8.55,143.81,143.74,8.55]
[1724113064051,2.4338,143.76,143.74,8.55]
[1724113064246,0.05285375,143.79,143.75,8.55]
[1724113064546,2.4335,143.78,143.77,8.55]
[1724113064848,2.48456017,143.78,143.77,8.55]
[1724113065945,0.05106017,143.78,143.77,8.55]
[1724113066444,2.48446017,143.78,143.77,8.55]
[1724113066646,0.05106017,143.78,143.77,8.55]
[1724113066857,2.48446017,143.78,143.77,8.55]
[1724113067042,0.05106017,143.78,143.77,8.55]
[1724113068456,2.48446017,143.78,143.77,8.55]
[1724113073658,0.05106017,143.78,143.77,8.55]
[1724113074760,2.4332,143.8,143.77,8.55]
[1724113074761,1.3378,143.84,143.77,8.55]
[1724113074956,2.4331,143.8,143.79,8.55]
[1724113078455,2.48595,143.81,143.79,8.55]
[1724113080362,2.48595,143.81,143.79,9.8107]
[1724113081161,0.05305,143.81,143.78,0.04940606]
[1724113081356,0.05305,143.81,143.79,8.55]
[1724113082258,2.48605,143.81,143.8,8.55]
[1724113083774,2.4332,143.79,143.78,8.59940606]
[1724113083970,0.05305,143.81,143.78,0.04940606]
[1724113084152,2.4332,143.8,143.79,8.55]
[1724113084651,2.4332,143.79,143.78,8.59940606]
[1724113084860,2.4332,143.79,143.78,0.04940606]
[1724113085967,2.4332,143.79,143.78,8.59940606]
[1724113086165,2.4331,143.8,143.78,8.59940606]
[1724113086360,0.05305,143.81,143.78,8.59940606]
[1724113086860,2.4332,143.79,143.78,8.59940606]
[1724113087365,2.4332,143.8,143.78,8.59940606]
[1724113087559,0.05305,143.81,143.78,0.04940606]
[1724113088362,2.4332,143.79,143.78,0.04940606]
[1724113088555,0.05305,143.81,143.78,0.04940606]
[1724113089070,2.4332,143.79,143.78,0.04940606]
[1724113096467,2.4331,143.8,143.78,0.04940606]
[1724113096773,2.4331,143.8,143.79,8.55]
[1724113097368,2.4332,143.79,143.78,0.04940606]
[1724113097667,0.05305,143.81,143.75,8.55]
[1724113097872,8.55,143.8,143.73,8.55]
[1724113098071,2.4341,143.74,143.73,8.55]
[1724113101769,2.4341,143.74,143.72,0.04676456]
[1724113101970,2.4342,143.73,143.72,8.59676456]
[1724113102372,2.4342,143.73,143.72,0.04676456]
[1724113103776,2.4348,143.7,143.66,1.3383]
[1724113103974,8.55,143.76,143.68,8.55]
[1724113104179,8.55,143.76,143.7,8.55]
[1724113104477,2.4346,143.71,143.7,8.55]
[1724113105475,2.4347,143.7,143.69,8.59609651]
[1724113108878,2.4346,143.71,143.69,8.59609651]
[1724113115186,0.05311489,143.72,143.7,8.55]
[1724113115777,0.05311489,143.72,143.7,10.9847]
[1724113116389,0.05311489,143.72,143.7,8.55]
[1724113117477,0.05311489,143.72,143.69,8.59609651]
[1724113117985,2.4346,143.71,143.69,8.59609651]
[1724113118385,0.05311489,143.72,143.69,11.03099651]
[1724113118584,2.48761489,143.72,143.69,11.03099651]
[1724113119887,0.05311489,143.72,143.69,8.59609651]
[1724113120288,2.4347,143.71,143.69,8.59609651]
[1724113120481,0.05311489,143.72,143.7,8.55]
[1724113120878,2.48751489,143.72,143.7,8.55]
[1724113124688,0.05311489,143.72,143.7,10.9847]
[1724113125287,0.05311489,143.72,143.7,8.55]
[1724113125489,0.05311489,143.72,143.69,0.04609651]
[1724113125883,2.4347,143.7,143.69,0.04609651]
[1724113130488,8.55,143.71,143.64,8.55]
[1724113130892,2.4354,143.67,143.64,8.55]
[1724113131495,2.48356496,143.67,143.64,8.60122145]
[1724113131795,2.48356496,143.67,143.64,11.03692145]
[1724113132795,0.04816496,143.67,143.64,0.05122145]
[1724113132997,0.04816496,143.67,143.64,8.60122145]
[1724113133191,2.48346496,143.67,143.64,8.60122145]
[1724113134491,2.4356,143.65,143.64,0.05122145]
[1724113136096,0.04816496,143.67,143.64,0.05122145]
[1724113136488,2.4356,143.66,143.64,0.05122145]
[1724113138003,2.4356,143.65,143.64,0.05122145]
[1724113139001,0.04816496,143.67,143.64,0.05122145]
[1724113139698,0.04816496,143.67,143.64,8.60122145]
[1724113140601,0.04816496,143.67,143.64,0.05122145]
[1724113140805,2.4356,143.66,143.64,0.05122145]
[1724113141404,2.4356,143.65,143.64,0.05122145]
[1724113145298,0.04816496,143.67,143.64,8.60122145]
[1724113145599,0.04816496,143.67,143.66,8.55]
[1724113146507,20.9,143.77,143.67,3.41085169]
[1724113146508,11.1078,143.74,143.67,3.41085169]
[1724113146798,2.5578,143.74,143.68,8.55]
[1724113146989,1.2963,143.74,143.68,8.55]
[1724113147500,0.05281901,143.72,143.7,0.04585999]
[1724113148494,2.4346,143.71,143.7,0.04585999]
[1724113150014,0.05281901,143.72,143.7,0.04585999]
[1724113150298,55.1,143.8,143.7,0.04585999]
[1724113150299,1.3385,143.8,143.71,8.55]
[1724113150496,1.3385,143.8,143.71,10.9846]
[1724113150497,2.4341,143.74,143.71,10.9846]
[1724113151100,2.4339,143.75,143.72,2.4344]
[1724113151300,8.55,143.78,143.73,8.55]
[1724113151608,0.05059893,143.75,143.73,8.55]
[1724113152798,2.48449893,143.75,143.73,8.55]
[1724113152998,2.48449893,143.75,143.72,2.48644689]
[1724113156102,2.48449893,143.75,143.72,0.05204689]
[1724113156307,0.05059893,143.75,143.72,0.05204689]
[1724113156507,2.4342,143.73,143.72,0.05204689]
[1724113160101,2.4348,143.7,143.66,8.55]
[1724113160595,2.4347,143.71,143.67,2.4353]
[1724113161302,0.04798368,143.7,143.68,0.0507751]
[1724113161610,0.04798368,143.7,143.68,2.4858751]
[1724113162312,2.48278368,143.7,143.68,0.0507751]
[1724113163403,0.04798368,143.7,143.68,0.0507751]
[1724113164213,0.04798368,143.7,143.68,2.4858751]
[1724113164409,0.04798368,143.7,143.69,8.55]
[1724113165108,0.04798368,143.7,143.69,10.9849]
[1724113167817,0.04798368,143.7,143.69,8.55]
[1724113168317,2.48268368,143.7,143.69,8.55]
[1724113168502,0.04798368,143.7,143.69,8.55]
[1724113168704,0.04798368,143.7,143.68,1.3345751]
[1724113169119,2.4349,143.69,143.68,0.0507751]
[1724113171112,0.04798368,143.7,143.68,0.0507751]
[1724113172613,0.04798368,143.7,143.68,2.4858751]
[1724113172811,0.04798368,143.7,143.68,12.01496798]
[1724113173113,9.9217,143.77,143.68,8.55]
[1724113173320,2.4344,143.73,143.7,8.55]
[1724113173914,2.4344,143.73,143.7,10.9847]
[1724113174110,2.48065269,143.73,143.7,11.03288487]
[1724113175319,2.4345,143.72,143.7,0.04818487]
[1724113177025,2.4345,143.72,143.7,2.48288487]
[1724113177418,2.48055269,143.73,143.7,2.48288487]
[1724113177619,0.04625269,143.73,143.7,0.04818487]
[1724113178312,2.4345,143.72,143.7,0.04818487]
[1724113178621,0.04625269,143.73,143.7,0.04818487]
[1724113179019,2.4346,143.71,143.7,0.04818487]
[1724113186621,0.04625269,143.73,143.7,0.04818487]
[1724113187224,2.48055269,143.73,143.7,2.48278487]
[1724113187521,2.48055269,143.73,143.71,8.55]
[1724113189930,0.04625269,143.73,143.71,10.9845]
[1724113190130,0.04625269,143.73,143.72,8.55]
[1724113190629,0.04625269,143.73,143.72,10.9844]
[1724113191732,0.04625269,143.73,143.72,8.55]
[1724113194033,0.04625269,143.73,143.7,0.04818487]
[1724113194535,2.48055269,143.73,143.7,2.48288487]
[1724113195132,2.4344,143.72,143.7,0.04818487]
[1724113196531,2.48055269,143.73,143.7,2.48288487]
[1724113197024,2.48055269,143.73,143.71,8.55]
[1724113197225,0.04625269,143.73,143.71,10.9844]
[1724113198233,0.04625269,143.73,143.72,8.55]
[1724113199826,0.04625269,143.73,143.72,10.9844]
[1724113200333,1.3385,143.8,143.72,8.55]
[1724113200334,9.8885,143.8,143.72,8.55]
[1724113200544,9.8885,143.8,143.74,8.55]
[1724113201434,0.05222862,143.78,143.76,0.04933862]
[1724113202032,2.4337,143.77,143.76,0.04933862]
[1724113202440,0.05222862,143.78,143.76,0.04933862]
[1724113203138,0.05222862,143.78,143.77,8.55]
[1724113205130,0.05222862,143.78,143.77,10.9836]
[1724113206933,0.05222862,143.78,143.77,8.55]
[1724113207247,0.05222862,143.78,143.76,0.04933862]
[1724113207538,0.05222862,143.78,143.76,8.59933862]
[1724113211741,2.4336,143.77,143.76,8.59933862]
[1724113212739,2.48572862,143.78,143.76,8.59933862]
[1724113212937,2.7238,143.85,143.77,8.55]
[1724113213133,2.7238,143.85,143.77,3.42664902]
[1724113213339,2.4331,143.8,143.77,3.42664902]
[1724113213530,11.2738,143.85,143.72,1.337]
[1724113213531,29.45,143.84,143.72,1.337]
[1724113213841,29.45,143.84,143.75,2.4338]
[1724113214046,0.04830354,143.81,143.78,0.0498029]
[1724113214343,0.04830354,143.81,143.71,1.2629]
[1724113214344,2.4342,143.73,143.71,1.2629]
[1724113214538,12.10699933,143.78,143.71,9.8129]
[1724113214839,2.434,143.75,143.72,8.55]
[1724113215642,2.48095354,143.75,143.72,8.60088178]
[1724113216538,2.48095354,143.75,143.72,0.05088178]
[1724113216853,0.04695354,143.75,143.72,0.05088178]
[1724113217544,2.4342,143.74,143.72,0.05088178]
[1724113218043,2.4342,143.73,143.72,0.05088178]
[1724113218239,0.04695354,143.75,143.67,1.276]
[1724113218451,42.27,143.77,143.67,1.276]
[1724113218743,2.4348,143.7,143.67,1.276]
[1724113218944,42.27,143.77,143.67,1.276]
[1724113219447,0.04636668,143.73,143.71,0.04979152]
[1724113220645,2.4344,143.72,143.71,0.04979152]
[1724113222051,2.48066668,143.73,143.71,0.04979152]
[1724113222250,0.04636668,143.73,143.71,0.04979152]
[1724113223749,2.4344,143.72,143.71,0.04979152]
[1724113226250,0.04636668,143.73,143.71,0.04979152]
[1724113228152,2.48056668,143.73,143.71,0.04979152]
[1724113229449,2.4344,143.72,143.71,0.04979152]
[1724113229854,0.04636668,143.73,143.71,0.04979152]
[1724113233554,4.83431836,143.79,143.72,21.37]
[1724113233750,1.3563,143.79,143.72,21.37]
[1724113233949,4.75413331,143.79,143.73,2.4342]
[1724113234457,2.4337,143.76,143.73,2.4342]
[1724113234663,2.4840333,143.76,143.73,2.47948709]
[1724113235551,0.0503333,143.76,143.74,2.434]
[1724113235959,0.0503333,143.76,143.73,0.04528709]
[1724113236161,2.4840333,143.76,143.73,2.47938709]
[1724113236661,0.0503333,143.76,143.74,2.4341]
[1724113238660,0.0503333,143.76,143.74,10.9741]
[1724113243765,2.4841333,143.76,143.73,11.01948709]
[1724113245853,0.0503333,143.76,143.74,10.9741]
[1724113249470,2.4841333,143.76,143.73,11.01948709]
[1724113253473,0.0503333,143.76,143.74,2.434]
[1724113253774,0.0503333,143.76,143.75,8.54]
[1724113254568,0.0503333,143.76,143.75,10.9739]
[1724113254768,11.97918856,143.82,143.75,8.54]
[1724113254967,2.4332,143.8,143.77,8.54]
[1724113255274,8.54,143.84,143.77,8.54]
[1724113255576,12.02194811,143.84,143.77,8.54]
[1724113255870,0.05288383,143.82,143.79,8.59175944]
[1724113256374,2.433,143.81,143.79,8.59175944]
[1724113259779,0.05288383,143.82,143.79,11.02495944]
[1724113261278,0.05288383,143.82,143.8,10.973]
[1724113261479,0.05288383,143.82,143.81,8.54]
[1724113261680,8.54,143.9,143.83,8.54]
[1724113261873,0.1008,143.92,143.83,8.54]
[1724113261874,2.6379,143.92,143.83,10.9725]
[1724113262079,11.0771,143.92,143.84,8.54]
[1724113262289,11.0771,143.92,143.86,8.54]
[1724113262471,3.5444857,143.93,143.86,10.9719]
[1724113262472,2.4315,143.9,143.86,10.9719]
[1724113262875,2.5371,143.96,143.88,8.54]
[1724113262876,8.54,143.95,143.88,8.54]
[1724113263078,8.54,143.95,143.89,8.54]
[1724113263277,227.0,144.03,143.89,8.54]
[1724113263480,0.04705766,143.93,143.91,8.54]
[1724113263886,11.95743044,143.97,143.91,8.54]
[1724113264073,8.54,143.98,143.91,8.58797514]
[1724113264273,8.54,143.98,143.91,8.54]
[1724113264580,8.54,143.98,143.91,10.9711]
[1724113264581,2.4305,143.96,143.91,10.9711]
[1724113265377,0.04886067,143.95,143.92,0.04384964]
[1724113265573,0.04886067,143.95,143.92,8.58384964]
[1724113265774,9.8104,144.01,143.94,8.54]
[1724113265984,9.8104,144.01,143.95,8.54]
[1724113266378,2.4297,144.0,143.95,10.9704]
[1724113266573,2.4297,144.0,143.94,21.33]
[1724113266780,2.4297,144.0,143.94,22.646]
[1724113267080,0.05245097,143.98,143.96,0.05101418]
[1724113269783,2.48255097,143.98,143.96,0.05101418]
[1724113270578,2.4302,143.97,143.96,0.05101418]
[1724113270875,0.05245097,143.98,143.96,0.05101418]
[1724113271287,2.48255097,143.98,143.96,0.05101418]
[1724113272286,2.4302,143.97,143.96,0.05101418]
[1724113277584,2.48245097,143.98,143.96,0.05101418]
[1724113277787,0.05245097,143.98,143.96,0.05101418]
[1724113278289,2.48245097,143.98,143.96,0.05101418]
[1724113278588,0.05245097,143.98,143.96,0.05101418]
[1724113278791,2.4302,143.97,143.96,0.05101418]
[1724113292493,8.53,143.97,143.9,11.2015]
[1724113292887,8.53,143.97,143.9,9.8404]
[1724113293496,0.05336826,143.95,143.92,0.04890365]
[1724113294898,2.4309,143.93,143.92,0.04890365]
[1724113296296,2.4307,143.94,143.92,8.57890365]
[1724113296505,0.05336826,143.95,143.93,8.53]
[1724113297789,2.48396826,143.95,143.93,8.53]
[1724113298603,2.4307,143.94,143.92,8.57890365]
[1724113299096,2.4309,143.93,143.92,8.57890365]
[1724113299397,2.4309,143.93,143.92,0.04890365]
[1724113305091,2.4309,143.93,143.92,8.57890365]
[1724113308404,2.4307,143.94,143.92,8.57890365]
[1724113308995,2.4307,143.94,143.92,11.00990365]
[1724113309504,2.48396826,143.95,143.92,11.00990365]
[1724113310311,2.48396826,143.95,143.94,8.53]
[1724113310511,0.05336826,143.95,143.94,8.53]
[1724113310710,0.05336826,143.95,143.92,0.04890365]
[1724113311010,0.05336826,143.95,143.93,8.53]
[1724113311205,2.48396826,143.95,143.93,8.53]
[1724113311409,0.05336826,143.95,143.93,8.53]
[1724113312002,0.05336826,143.95,143.92,0.04890365]
[1724113312607,2.4309,143.93,143.92,0.04890365]
[1724113320416,2.4308,143.94,143.92,0.04890365]
[1724113320608,0.05336826,143.95,143.92,0.04890365]
[1724113321010,2.4309,143.93,143.92,0.04890365]
[1724113321715,2.4307,143.94,143.92,0.04890365]
[1724113322217,2.48396826,143.95,143.93,8.53]
[1724113322518,0.05336826,143.95,143.94,8.53]
[1724113325123,2.48386826,143.95,143.94,8.53]
[1724113325718,0.05336826,143.95,143.94,8.53]
[1724113326431,0.05336826,143.95,143.93,3.7566]
[1724113326921,0.05336826,143.95,143.94,8.53]
[1724113327613,0.05336826,143.95,143.94,10.9607]
[1724113328522,0.05336826,143.95,143.94,8.53]
[1724113330219,0.05336826,143.95,143.94,10.9607]
[1724113334627,0.05336826,143.95,143.94,8.53]
[1724113339321,2.48386826,143.95,143.94,8.53]
[1724113340149,0.05336826,143.95,143.94,8.53]
[1724113340628,0.05336826,143.95,143.94,10.9607]
[1724113341533,8.53,144.01,143.94,10.9607]
[1724113342633,0.04591579,143.99,143.96,0.05097461]
[1724113344433,2.43,143.98,143.96,0.05097461]
[1724113344819,0.04591579,143.99,143.96,0.05097461]
[1724113345031,0.04591579,143.99,143.97,8.53]
[1724113345330,3.39311698,144.08,143.96,0.05097461]
[1724113345526,2.4291,144.04,144.01,8.53]
[1724113345832,2.6485,144.09,144.03,8.53]
[1724113346025,2.4289,144.05,144.03,8.53]
[1724113346223,2.47616703,144.05,144.03,8.58206846]
[1724113346423,0.04726703,144.05,144.03,8.58206846]
[1724113346727,0.04726703,144.05,144.04,8.53]
[1724113347431,8.53,144.13,144.04,8.53]
[1724113347640,8.53,144.13,144.06,8.53]
[1724113348232,23.3593,144.14,144.06,8.53]
[1724113348233,2.4281,144.1,144.06,8.53]
[1724113348537,2.4281,144.1,144.08,8.5780158]
[1724113348831,2.4281,144.1,144.08,8.53]
[1724113349030,2.47315148,144.1,144.08,8.58003521]
[1724113350739,2.4282,144.09,144.08,0.05003521]
[1724113353440,0.04505148,144.1,144.08,0.05003521]
[1724113353441,2.47305148,144.1,144.08,0.05003521]
[1724113353633,0.04505148,144.1,144.09,8.53]
[1724113354632,2.4275,144.13,144.09,10.9582]
[1724113354831,2.4275,144.13,144.11,8.53]
[1724113355639,2.47327172,144.13,144.11,8.57743283]
[1724113357348,0.04577172,144.13,144.11,8.57743283]
[1724113358447,0.04577172,144.13,144.11,0.04743283]
[1724113358636,2.4276,144.12,144.11,0.04743283]
[1724113359539,0.04577172,144.13,144.07,8.53]
[1724113359934,0.04577172,144.13,144.07,10.9585]
[1724113360233,0.04577172,144.13,144.09,8.53]
[1724113360433,8.53,144.16,144.1,8.53]
[1724113360647,2.4276,144.13,144.1,8.53]
[1724113361145,2.4276,144.13,144.12,0.05222999]
[1724113362135,0.04494438,144.14,144.12,0.05222999]
[1724113362930,2.47234438,144.14,144.12,0.05222999]
[1724113365451,2.4275,144.13,144.12,0.05222999]
[1724113367349,2.47234438,144.14,144.12,0.05222999]
[1724113367653,0.04494438,144.14,144.12,0.05222999]
[1724113368945,2.47234438,144.14,144.12,0.05222999]
[1724113369646,0.04494438,144.14,144.12,0.05222999]
[1724113370143,2.47234438,144.14,144.12,0.05222999]
[1724113373755,2.4275,144.13,144.12,0.05222999]
[1724113378949,2.4281,144.1,144.05,1.3177]
[1724113379156,8.53,144.13,144.05,1.3177]
[1724113379350,8.53,144.13,144.05,9.8477]
[1724113379754,8.53,144.13,144.06,2.4286]
[1724113379958,2.4281,144.1,144.08,0.04557359]
[1724113380464,2.47895745,144.11,144.08,8.57557359]
[1724113380648,0.05115745,144.11,144.08,8.57557359]
[1724113381159,0.05115745,144.11,144.08,11.00387359]
[1724113381359,0.05115745,144.11,144.1,8.53]
[1724113381549,2.4276,144.13,144.1,8.53]
[1724113381753,2.4276,144.13,144.11,8.53]
[1724113381958,2.4276,144.13,144.1,1.3076]
[1724113382156,2.4276,144.13,144.11,8.53]
[1724113382656,2.4276,144.12,144.11,0.05164627]
[1724113385662,2.4276,144.12,144.05,1.3076]
[1724113385663,2.4282,144.09,144.05,1.3076]
[1724113385958,8.53,144.13,144.06,8.53]
[1724113386159,8.53,144.13,144.05,1.3076]
[1724113386368,2.4284,144.08,144.05,9.8376]
[1724113386757,0.0518358,144.08,144.05,9.88717976]
[1724113386958,2.4285,144.07,144.05,1.35717976]
[1724113387357,2.4285,144.07,144.05,9.88717976]
[1724113388457,2.4802358,144.08,144.05,9.88717976]
[1724113388751,0.0518358,144.08,144.05,9.88717976]
[1724113389760,2.4285,144.07,144.05,9.88717976]
[1724113390965,2.4287,144.06,144.05,8.57957976]
[1724113391468,2.4285,144.07,144.05,8.57957976]
[1724113392263,2.4287,144.06,144.05,8.57957976]
[1724113393656,2.4286,144.07,144.05,8.57957976]
[1724113394168,2.4287,144.06,144.05,0.04957976]
[1724113397068,2.4286,144.07,144.05,0.04957976]
[1724113397572,2.4285,144.07,144.05,0.04957976]
[1724113397973,0.0518358,144.08,144.05,0.04957976]
[1724113398278,2.4287,144.06,144.05,0.04957976]
[1724113400273,2.4286,144.07,144.05,0.04957976]
[1724113400477,0.0518358,144.08,144.06,8.53]
[1724113401471,2.4285,144.07,144.06,8.53]
[1724113401876,2.4285,144.07,144.05,0.04957976]
[1724113402376,0.0518358,144.08,144.05,0.04957976]
[1724113403378,2.4285,144.07,144.05,0.04957976]
[1724113406280,0.3634,144.07,144.05,0.04957976]
[1724113406470,1.3263,144.17,144.06,42.65]
[1724113406669,1.3263,144.17,144.11,8.53]
[1724113406670,9.8563,144.17,144.11,8.53]
[1724113407583,0.04741659,144.15,144.13,0.04902539]
[1724113407782,2.4274,144.14,144.13,0.04902539]
[1724113412174,0.04741659,144.15,144.06,1.3042]
[1724113412175,2.4277,144.12,144.08,2.4282]
[1724113412486,2.4277,144.12,144.09,8.53]
[1724113413286,2.4277,144.12,144.09,10.9581]
[1724113413493,2.47297206,144.12,144.09,11.00358867]
[1724113415489,2.47297206,144.12,144.09,8.57548867]
[1724113417190,2.4278,144.11,144.09,8.57548867]
[1724113417789,2.428,144.1,144.09,0.04548867]
[1724113419785,8.53,144.11,144.04,8.53]
[1724113419786,2.4285,144.07,144.04,8.53]
[1724113420591,2.47683855,144.07,144.04,8.57460985]
[1724113420785,2.47683855,144.07,144.04,11.00360985]
[1724113421499,2.47683855,144.07,144.04,8.57460985]
[1724113421697,0.04833855,144.07,144.04,0.04460985]
[1724113421996,3.5256134,144.14,144.04,0.04460985]